fUST/lending_fUST_20260107
["ID","MTS","AMOUNT","RATE_DAILY","PERIOD"]
[400648572,1767765048167,-151.0,0.00026845,7]
[400648573,1767765048176,-234.556182,0.00026845,7]
[400648574,1767765048185,-151.0,0.00026845,7]
[400648575,1767765048194,-151.0,0.00026845,7]
[400648576,1767765048203,-151.0,0.00026845,7]
[400648577,1767765048212,-151.0,0.00026845,7]
[400648578,1767765048221,-151.0,0.00026845,7]
[400648579,1767765048230,-151.0,0.00026845,7]
[400648580,1767765048239,-1626.684503,0.00026845,7]
[400648581,1767765048248,-1626.684503,0.00026845,7]
[400648582,1767765048257,-1626.684503,0.00026845,7]
[400648583,1767765048266,-1626.684503,0.00026845,7]
[400648584,1767765048275,-151.0,0.00026845,7]
[400648585,1767765048284,-151.0,0.00026845,7]
[400648586,1767765048293,-151.0,0.00026845,7]
[400648587,1767765048302,-151.0,0.00026845,7]
[400648588,1767765048311,-194.927323,0.00026845,7]
[400648589,1767765048320,-194.927323,0.00026845,7]
[400648590,1767765048329,-194.927323,0.00026845,7]
[400648591,1767765048339,-194.927323,0.00026845,7]
[400648592,1767765048348,-151.0,0.00026845,7]
[400648593,1767765048357,-1016.281206,0.00026845,7]
[400648594,1767765048366,-1016.281206,0.00026845,7]
[400648595,1767765048375,-1016.281206,0.00026845,7]
[400648596,1767765048384,-1016.281206,0.00026845,7]
[400648597,1767765048395,-200.632316,0.00026845,7]
[400648598,1767765048404,-200.632316,0.00026845,7]
[400648599,1767765048414,-200.632316,0.00026845,7]
[400648600,1767765048423,-200.632316,0.00026845,7]
[400648601,1767765048432,-209.524359,0.00026845,7]
[400648602,1767765048441,-209.524359,0.00026845,7]
[400648603,1767765048450,-209.524359,0.00026845,7]
[400648604,1767765048459,-209.524359,0.00026845,7]
[400648605,1767765048468,-241.004676,0.00026845,7]
[400648606,1767765048478,-241.004676,0.00026845,7]
[400648607,1767765048487,-241.004676,0.00026845,7]
[400648608,1767765048496,-241.004676,0.00026845,7]
[400648609,1767765048508,-530.111159,0.00026845,7]
[400648610,1767765048518,-530.111159,0.00026845,7]
[400648611,1767765048527,-530.111159,0.00026845,7]
[400648612,1767765048536,-530.111159,0.00026845,7]
[400648613,1767765048547,-210.572265,0.00026845,7]
[400648614,1767765048556,-210.572265,0.00026845,7]
[400648615,1767765048565,-634.815792,0.00026845,7]
[400648616,1767765048574,-210.572265,0.00026845,7]
[400648617,1767765048585,-218.702509,0.00026845,7]
[400648618,1767765048594,-634.815792,0.00026845,7]
[400648619,1767765048604,-218.702509,0.00026845,7]
[400648620,1767765048613,-210.572265,0.00026845,7]
[400648621,1767765048622,-634.815792,0.00026845,7]
[400648622,1767765048632,-218.702509,0.00026845,7]
[400648623,1767765048641,-634.815792,0.00026845,7]
[400648624,1767765048650,-218.702509,0.00026845,7]
[400648625,1767765048659,-290.765005,0.00026845,7]
[400648626,1767765048668,-290.765005,0.00026845,7]
[400648627,1767765048678,-290.765005,0.00026845,7]
[400648628,1767765048687,-290.765005,0.00026845,7]
[400648629,1767765048696,-550.0,0.00026849,2]
[400648630,1767765048705,-153.54961216,0.000269,7]
[400648631,1767765048714,-4481.7780761,0.00026943,2]
[400648632,1767765048723,-2200.0,0.00026999,7]
[400648633,1767765048732,-152.0,0.00027,20]
[400648634,1767765048742,-1315.6497528,0.00027,2]
[400648635,1767765048751,-600.0,0.00027,14]
[400648636,1767765048761,-27524.4029316,0.00027,7]
[400648637,1767765048770,-270.08,0.00027,7]
[400648638,1767765048779,-286.8,0.00027,7]
[400648639,1767765048788,-875.9036859,0.0002706,2]
[400648640,1767765048797,-152.42996206,0.00027075,2]
[400648641,1767765048807,-32261.07,0.00027075,2]
[400648642,1767765048816,-2674.60743027,0.00027075,2]
[400648643,1767765048826,-553.64373807,0.00027075,2]
[400648644,1767765048835,-340.63,0.000271,2]
[400648645,1767765048844,-3384.0432589,0.00027101,2]
[400648646,1767765048853,-500.0,0.00027117,7]
[400648647,1767765048862,-2400.2459822,0.00027194,2]
[400648648,1767765048872,-1908.17,0.000272,7]
[400648649,1767765048881,-1346.23,0.00027397,2]
[400648650,1767765048891,-223.83334036,0.00027397,2]
[400648651,1767765048900,-650.0,0.00027397,5]
[400648652,1767765048910,-154.121516,0.00027397,7]
[400648653,1767765048919,-151.0,0.00027397,7]
[400648654,1767765048928,-151.0,0.00027397,7]
[400648655,1767765048937,-151.0,0.00027397,7]
[400648656,1767765048946,-276.0357,0.00027397,7]
[400648657,1767765048955,-500.0,0.00027397,5]
[400648658,1767765048964,-514.81933417,0.00027397,5]
[400648659,1767765048973,-1000.0,0.00027465,30]
[400648660,1767765048983,-1000.0,0.00027465,30]
[400648661,1767765048991,-2796.95753323,0.00027468,25]
[400648662,1767765049001,-2000.0,0.00027516,7]
[400648663,1767765049009,-8045.68317556,0.00027528,2]
[400648664,1767765049018,-1041.66666667,0.000276,30]
[400648665,1767765049027,-2200.0,0.00027607,7]
[400648666,1767765049036,-21899.11408481,0.00027623,2]
[400648667,1767765049046,-2773.56790519,0.00027623,2]
[400648668,1767765049055,-574.12855637,0.00027623,2]
[400648669,1767765049063,-25963.54,0.000277,2]
[400648670,1767765049073,-180.0,0.00027753,26]
[400648671,1767765049081,-300.0,0.00027753,2]
[400648672,1767765049090,-300.0,0.00027753,2]
[400648673,1767765049099,-300.0,0.00027753,2]
[400648674,1767765049108,-300.0,0.00027753,2]
[400648675,1767765049117,-300.0,0.00027781,2]
[400648676,1767765049126,-300.0,0.00027781,2]
[400648677,1767765049135,-300.0,0.00027781,2]
[400648678,1767765049144,-300.0,0.00027781,2]
[400648679,1767765049153,-151.0,0.000278,7]
[400648680,1767765049162,-151.0,0.000278,7]
[400648681,1767765049170,-151.0,0.000278,7]
[400648682,1767765049179,-246.968278,0.000278,7]
[400648683,1767765049188,-151.0,0.000278,7]
[400648684,1767765049197,-151.0,0.000278,7]
[400648685,1767765049207,-165.389182,0.000278,7]
[400648686,1767765049216,-151.0,0.000278,7]
[400648687,1767765049226,-167.78,0.000278,7]
[400648688,1767765049238,-500.0,0.0002783,7]
[400648689,1767765049247,-346.1,0.00027879,2]
[400648690,1767765049256,-1000.0,0.00027945,5]
[400648691,1767765049265,-750.0,0.00027945,5]
[400648692,1767765049274,-250.0,0.00027945,5]
[400648693,1767765049283,-250.0,0.00027945,5]
[400648694,1767765049292,-2200.51,0.00028,14]
[400648695,1767765049301,-1020.52354742,0.00028,2]
[400648696,1767765049311,-2200.0,0.00028031,7]
[400648697,1767765049320,-5000.0,0.00028038,2]
[400648698,1767765049329,-2875.33898822,0.000281,7]
[400648699,1767765049338,-755.0821143,0.00028124,2]
[400648700,1767765049347,-500.0,0.00028145,7]
[400648701,1767765049356,-595.37131296,0.00028171,2]
[400648702,1767765049365,-535.5672704,0.00028239,2]
[400648703,1767765049375,-2000.0,0.00028251,7]
[400648704,1767765049384,-500.0,0.00028386,7]
[400648705,1767765049394,-850.0,0.00028493,5]
[400648706,1767765049403,-1345.06654584,0.00028493,5]
[400648707,1767765049411,-350.0,0.00028493,5]
[400648708,1767765049420,-350.0,0.00028493,5]
[400648709,1767765049429,-1908.17,0.000285,7]
[400648710,1767765049439,-270.08,0.000285,7]
[400648711,1767765049448,-286.8,0.000285,7]
[400648712,1767765049457,-500.0,0.00028699,7]
[400648713,1767765049468,-617.40005154,0.00028719,2]
[400648714,1767765049477,-1346.23,0.00028767,4]
[400648715,1767765049485,-215.630447,0.00028767,60]
[400648716,1767765049495,-172.38864068,0.000288,7]
[400648717,1767765049505,-340.63,0.000288,2]
[400648718,1767765049516,-531.32138311,0.00028809,2]
[400648719,1767765049525,-3117.08311029,0.00028888,28]
[400648720,1767765049535,-500.0,0.00028968,7]
[400648721,1767765049544,-2000.0,0.00028985,7]
[400648722,1767765049554,-500.0,0.00028985,7]
[400648723,1767765049563,-890.22929937,0.00029,2]
[400648724,1767765049572,-200020.53823055,0.00029,30]
[400648725,1767765049584,-200.0,0.00029,7]
[400648726,1767765049593,-200.0,0.00029,7]
[400648727,1767765049602,-200.0,0.00029,7]
[400648728,1767765049611,-200.0,0.00029,7]
[400648729,1767765049619,-151.0,0.00029,7]
[400648730,1767765049629,-151.0,0.00029,7]
[400648731,1767765049638,-151.0,0.00029,7]
[400648732,1767765049647,-151.0,0.00029,7]
[400648733,1767765049656,-151.0,0.00029,7]
[400648734,1767765049665,-151.0,0.00029,7]
[400648735,1767765049674,-279.168614,0.00029,7]
[400648736,1767765049684,-151.0,0.00029,7]
[400648737,1767765049693,-173.61071177,0.00029,7]
[400648738,1767765049702,-151.0,0.00029,7]
[400648739,1767765049711,-202.942405,0.00029,7]
[400648740,1767765049720,-151.0,0.00029,7]
[400648741,1767765049730,-151.0,0.00029,7]
[400648742,1767765049739,-609.666208,0.00029,7]
[400648743,1767765049748,-609.666208,0.00029,7]
[400648744,1767765049758,-609.666208,0.00029,7]
[400648745,1767765049767,-609.666208,0.00029,7]
[400648746,1767765049776,-184.812283,0.00029,7]
[400648747,1767765049785,-184.812283,0.00029,7]
[400648748,1767765049794,-184.812283,0.00029,7]
[400648749,1767765049803,-184.812291,0.00029,7]
[400648750,1767765049812,-157.099849,0.00029,7]
[400648751,1767765049821,-151.0,0.00029,7]
[400648752,1767765049831,-215.064076,0.00029,7]
[400648753,1767765049840,-263.532421,0.00029,7]
[400648754,1767765049850,-215.064076,0.00029,7]
[400648755,1767765049859,-215.064076,0.00029,7]
[400648756,1767765049868,-215.064076,0.00029,7]
[400648757,1767765049877,-151.0,0.00029,7]
[400648758,1767765049887,-151.0,0.00029,7]
[400648759,1767765049896,-151.0,0.00029,7]
[400648760,1767765049906,-205.742012,0.00029,7]
[400648761,1767765049915,-151.0,0.00029,7]
[400648762,1767765049924,-205.742012,0.00029,7]
[400648763,1767765049934,-205.742012,0.00029,7]
[400648764,1767765049943,-205.742016,0.00029,7]
[400648765,1767765049952,-440.287203,0.00029,7]
[400648766,1767765049961,-440.287203,0.00029,7]
[400648767,1767765049970,-440.287203,0.00029,7]
[400648768,1767765050070,-440.287212,0.00029,7]
[400648769,1767765050082,-390.92977,0.00029,7]
[400648770,1767765050092,-390.92977,0.00029,7]
[400648771,1767765050102,-390.92977,0.00029,7]
[400648772,1767765050111,-390.929777,0.00029,7]
[400648773,1767765050120,-151.0,0.00029,7]
[400648774,1767765050129,-186.329815,0.00029,7]
[400648775,1767765050138,-186.329815,0.00029,7]
[400648776,1767765050147,-186.329815,0.00029,7]
[400648777,1767765050157,-186.329815,0.00029,7]
[400648778,1767765050167,-1019.0,0.00029,2]
[400648779,1767765050180,-300.0,0.00029,7]
[400648780,1767765050189,-300.0,0.00029,7]
[400648781,1767765050200,-300.0,0.00029,7]
[400648782,1767765050210,-300.0,0.00029,7]
[400648783,1767765050221,-151.0,0.00029,7]
[400648784,1767765050231,-151.0,0.00029,7]
[400648785,1767765050242,-151.0,0.00029,7]
[400648786,1767765050252,-151.0,0.00029,7]
[400648787,1767765050262,-274.97237,0.00029,7]
[400648788,1767765050271,-274.97237,0.00029,7]
[400648789,1767765050280,-274.97237,0.00029,7]
[400648790,1767765050290,-1016.281206,0.00029037,7]
[400648791,1767765050299,-1016.281206,0.00029037,7]
[400648792,1767765050308,-1016.281206,0.00029037,7]
[400648793,1767765050318,-1016.281206,0.00029037,7]
[400648794,1767765050326,-200.632316,0.00029037,7]
[400648795,1767765050335,-200.632316,0.00029037,7]
[400648796,1767765050345,-200.632316,0.00029037,7]
[400648797,1767765050355,-200.63232,0.00029037,7]
[400648798,1767765050365,-209.524359,0.00029037,7]
[400648799,1767765050375,-209.524359,0.00029037,7]
[400648800,1767765050386,-209.524359,0.00029037,7]
[400648801,1767765050395,-209.524365,0.00029037,7]
[400648802,1767765050405,-241.004676,0.00029037,7]
[400648803,1767765050417,-241.004676,0.00029037,7]
[400648804,1767765050430,-241.004676,0.00029037,7]
[400648805,1767765050440,-241.004669,0.00029037,7]
[400648806,1767765050450,-530.111159,0.00029037,7]
[400648807,1767765050460,-530.111159,0.00029037,7]
[400648808,1767765050469,-530.111159,0.00029037,7]
[400648809,1767765050479,-530.111152,0.00029037,7]
[400648810,1767765050490,-210.572265,0.00029037,7]
[400648811,1767765050500,-210.572265,0.00029037,7]
[400648812,1767765050514,-634.815792,0.00029037,7]
[400648813,1767765050524,-210.572265,0.00029037,7]
[400648814,1767765050534,-218.702509,0.00029037,7]
[400648815,1767765050544,-634.815792,0.00029037,7]
[400648816,1767765050555,-218.702509,0.00029037,7]
[400648817,1767765050565,-210.572258,0.00029037,7]
[400648818,1767765050576,-634.815792,0.00029037,7]
[400648819,1767765050589,-218.702509,0.00029037,7]
[400648820,1767765050599,-634.815795,0.00029037,7]
[400648821,1767765050608,-218.702508,0.00029037,7]
[400648822,1767765050617,-290.765005,0.00029037,7]
[400648823,1767765050627,-290.765005,0.00029037,7]
[400648824,1767765050635,-290.765005,0.00029037,7]
[400648825,1767765050644,-290.765001,0.00029037,7]
[400648826,1767765050654,-187.815389,0.00029037,7]
[400648827,1767765050663,-187.815389,0.00029037,7]
[400648828,1767765050673,-187.815389,0.00029037,7]
[400648829,1767765050683,-187.815389,0.00029037,7]
[400648830,1767765050693,-151.0,0.00029037,2]
[400648831,1767765050702,-673.621691,0.00029037,7]
[400648832,1767765050712,-673.621691,0.00029037,7]
[400648833,1767765050722,-673.621691,0.00029037,7]
[400648834,1767765050731,-673.621691,0.00029037,7]
[400648835,1767765050740,-151.0,0.00029037,7]
[400648836,1767765050749,-151.0,0.00029037,7]
[400648837,1767765050760,-1664.343388,0.00029037,7]
[400648838,1767765050770,-1664.343388,0.00029037,7]
[400648839,1767765050779,-1664.343388,0.00029037,7]
[400648840,1767765050788,-1664.343388,0.00029037,7]
[400648841,1767765050798,-215.570059,0.00029037,7]
[400648842,1767765050809,-206.665209,0.00029037,7]
[400648843,1767765050820,-215.570059,0.00029037,7]
[400648844,1767765050830,-206.665209,0.00029037,7]
[400648845,1767765050839,-215.570059,0.00029037,7]
[400648846,1767765050848,-206.665209,0.00029037,7]
[400648847,1767765050858,-215.570059,0.00029037,7]
[400648848,1767765050869,-206.665209,0.00029037,7]
[400648849,1767765050879,-950.0,0.00029041,5]
[400648850,1767765050888,-450.0,0.00029041,5]
[400648851,1767765050897,-450.0,0.00029041,5]
[400648852,1767765050907,-2200.0,0.00029087,7]
[400648853,1767765050917,-151.0,0.000291,7]
[400648854,1767765050926,-151.0,0.000291,7]
[400648855,1767765050935,-151.0,0.000291,7]
[400648856,1767765050944,-151.0,0.000291,7]
[400648857,1767765050954,-194.927323,0.000291,7]
[400648858,1767765050963,-194.927323,0.000291,7]
[400648859,1767765050973,-194.927323,0.000291,7]
[400648860,1767765050982,-194.927323,0.000291,7]
[400648861,1767765050991,-153.683464,0.000291,7]
[400648862,1767765051000,-8045.68317556,0.00029172,2]
[400648863,1767765051009,-2200.0,0.00029184,7]
[400648864,1767765051018,-2200.0,0.00029205,7]
[400648865,1767765051027,-2200.0,0.00029246,7]
[400648866,1767765051037,-253.60075553,0.00029267,2]
[400648867,1767765051047,-2200.0,0.00029352,7]
[400648868,1767765051055,-25963.54,0.000294,2]
[400648869,1767765051064,-346.1,0.00029476,3]
[400648870,1767765051074,-2200.51,0.000295,14]
[400648871,1767765051083,-151.0,0.00029589,7]
[400648872,1767765051092,-151.0,0.00029589,7]
[400648873,1767765051101,-151.0,0.00029589,7]
[400648874,1767765051110,-151.0,0.00029589,7]
[400648875,1767765051118,-151.0,0.00029589,7]
[400648876,1767765051127,-151.0,0.00029589,7]
[400648877,1767765051136,-151.0,0.00029589,7]
[400648878,1767765051146,-222.050816,0.00029589,7]
[400648879,1767765051156,-1626.684503,0.00029589,7]
[400648880,1767765051165,-1626.684503,0.00029589,7]
[400648881,1767765051174,-1626.684503,0.00029589,7]
[400648882,1767765051183,-1626.684503,0.00029589,7]
[400648883,1767765051192,-1050.0,0.00029589,5]
[400648884,1767765051201,-550.0,0.00029589,5]
[400648885,1767765051211,-550.0,0.00029589,5]
[400648886,1767765051219,-214.456704,0.00029663,7]
[400648887,1767765051229,-214.456704,0.00029663,7]
[400648888,1767765051238,-214.456704,0.00029663,7]
[400648889,1767765051248,-214.456704,0.00029663,7]
[400648890,1767765051257,-151.0,0.00029663,7]
[400648891,1767765051266,-151.0,0.00029663,7]
[400648892,1767765051275,-5000.0,0.00029663,2]
[400648893,1767765051286,-2000.0,0.00029719,7]
[400648894,1767765051296,-2200.0,0.0002973,7]
[400648895,1767765051305,-2200.0,0.00029822,7]
[400648896,1767765051314,-412.72451996,0.0003,10]
[400648897,1767765051323,-207.97855793,0.0003,30]
[400648898,1767765051332,-9242.35901551,0.0003,7]
[400648899,1767765051341,-17930.91843581,0.0003,2]
[400648900,1767765051350,-12215.17550631,0.0003,2]
[400648901,1767765051360,-779.93850633,0.0003,30]
[400648902,1767765051370,-1125.0,0.0003,5]
[400648903,1767765051379,-165.46,0.0003,5]
[400648904,1767765051388,-300.0,0.0003,60]
[400648905,1767765051397,-269.6751108,0.0003,2]
[400648906,1767765051406,-14009.63140241,0.0003,7]
[400648907,1767765051416,-1908.17,0.0003,7]
[400648908,1767765051425,-166.0,0.0003,14]
[400648909,1767765051434,-184.0,0.0003,14]
[400648910,1767765051443,-1019.0,0.0003,7]
[400648911,1767765051452,-1001.03390951,0.0003,14]
[400648912,1767765051461,-316.0,0.0003,14]
[400648913,1767765051470,-1346.23,0.00030136,6]
[400648914,1767765051479,-1150.0,0.00030137,5]
[400648915,1767765051488,-650.0,0.00030137,5]
[400648916,1767765051497,-650.0,0.00030137,5]
[400648917,1767765051511,-500.0,0.00030137,15]
[400648918,1767765051521,-328.54602491,0.00030137,120]
[400648919,1767765051530,-270.08,0.000302,7]
[400648920,1767765051539,-286.8,0.000302,7]
[400648921,1767765051549,-1000.0,0.00030211,30]
[400648922,1767765051558,-1000.0,0.00030211,30]
[400648923,1767765051567,-579.0,0.00030211,30]
[400648924,1767765051577,-3445.65246981,0.00030308,30]
[400648925,1767765051590,-316.0,0.00030411,14]
[400648926,1767765051600,-2000.0,0.00030454,7]
[400648927,1767765051609,-2200.0,0.00030522,7]
[400648928,1767765051619,-2200.0,0.0003056,7]
[400648929,1767765051628,-1299.19626571,0.00030685,5]
[400648930,1767765051638,-316.0,0.00030685,14]
[400648931,1767765051647,-500.0,0.00030685,15]
[400648932,1767765051655,-750.0,0.00030685,5]
[400648933,1767765051664,-750.65512167,0.00030685,5]
[400648934,1767765051673,-570.51722285,0.00030809,2]
[400648935,1767765051682,-8045.68317556,0.00030816,2]
[400648936,1767765051692,-2200.0,0.00030822,7]
[400648937,1767765051701,-402.32,0.00030958,30]
[400648938,1767765051711,-316.0,0.00030959,14]
[400648939,1767765051720,-152.0,0.00031,120]
[400648940,1767765051729,-1981.16465421,0.00031,10]
[400648941,1767765051738,-163.98489072,0.00031,120]
[400648942,1767765051747,-164.04291735,0.00031,120]
[400648943,1767765051756,-206.91086702,0.00031,120]
[400648944,1767765051767,-194.89245098,0.00031,120]
[400648945,1767765051784,-190.2708929,0.00031,120]
[400648946,1767765051794,-191.51603111,0.00031,120]
[400648947,1767765051803,-174.41697135,0.00031,120]
[400648948,1767765051812,-176.11325056,0.00031,120]
[400648949,1767765051822,-340.63,0.00031,2]
[400648950,1767765051831,-186.0317041,0.00031,120]
[400648951,1767765051840,-191.73798973,0.00031,120]
[400648952,1767765051850,-1019.0,0.00031,7]
[400648953,1767765051859,-177.0,0.00031041,43]
[400648954,1767765051868,-346.1,0.00031072,4]
[400648955,1767765051878,-25963.54,0.000311,2]
[400648956,1767765051888,-500.0,0.0003111,7]
[400648957,1767765051897,-2200.0,0.00031136,7]
[400648958,1767765051907,-2000.0,0.00031188,7]
[400648959,1767765051916,-316.0,0.00031233,14]
[400648960,1767765051926,-5000.0,0.00031288,2]
[400648961,1767765051935,-2200.51,0.000313,14]
[400648962,1767765051945,-500.0,0.00031385,7]
[400648963,1767765051955,-1908.17,0.000315,7]
[400648964,1767765051963,-402.32,0.00031506,31]
[400648965,1767765051973,-1346.23,0.00031506,8]
[400648966,1767765051983,-2800.0,0.00031544,7]
[400648967,1767765051992,-167.0,0.00031644,14]
[400648968,1767765052002,-316.0,0.00031644,14]
[400648969,1767765052013,-500.0,0.00031672,7]
[400648970,1767765052023,-3782.21246256,0.00031727,32]
[400648971,1767765052032,-164.04291735,0.000319,120]
[400648972,1767765052041,-206.91086702,0.000319,120]
[400648973,1767765052050,-190.2708929,0.000319,120]
[400648974,1767765052059,-191.51603111,0.000319,120]
[400648975,1767765052068,-174.41697135,0.000319,120]
[400648976,1767765052077,-18908.25294421,0.000319,2]
[400648977,1767765052086,-186.0317041,0.000319,120]
[400648978,1767765052095,-191.73798973,0.000319,120]
[400648979,1767765052104,-151.0,0.00031909,31]
[400648980,1767765052113,-151.0,0.00031909,31]
[400648981,1767765052123,-151.0,0.00031909,31]
[400648982,1767765052132,-151.0,0.00031909,31]
[400648983,1767765052142,-151.0,0.00031909,31]
[400648984,1767765052152,-151.0,0.00031909,31]
[400648985,1767765052163,-2000.0,0.00031922,7]
[400648986,1767765052172,-200.66450954,0.00032,2]
[400648987,1767765052181,-1019.0,0.00032,7]
[400648988,1767765052190,-1610.0,0.00032,30]
[400648989,1767765052200,-1260.0,0.00032,30]
[400648990,1767765052209,-156.58001189,0.00032045,10]
[400648991,1767765052218,-402.32,0.00032054,32]
[400648992,1767765052227,-270.08,0.000321,7]
[400648993,1767765052236,-286.8,0.000321,7]
[400648994,1767765052246,-500.0,0.0003216,2]
[400648995,1767765052398,-188.67967802,0.00032391,9]
[400648996,1767765052409,-340.63,0.000324,2]
[400648997,1767765052421,-8045.68317556,0.0003246,2]
[400648998,1767765052431,-451.0,0.000326,2]
[400648999,1767765052440,-402.32,0.00032602,33]
[400649000,1767765052448,-2000.0,0.00032657,7]
[400649001,1767765052457,-346.1,0.00032668,5]
[400649002,1767765052466,-609.71306259,0.00032809,2]
[400649003,1767765052476,-6312.3555703,0.00032874,2]
[400649004,1767765052485,-1346.23,0.00032876,120]
[400649005,1767765052495,-18638.93,0.00032877,10]
[400649006,1767765052504,-177.89274798,0.00032887,120]
[400649007,1767765052518,-191.73798973,0.000329,120]
[400649008,1767765052527,-5000.0,0.00032913,2]
[400649009,1767765052536,-152.0,0.00033,90]
[400649010,1767765052546,-1041.66666667,0.00033,10]
[400649011,1767765052557,-1019.0,0.00033,7]
[400649012,1767765052566,-2145.0,0.00033104,2]
[400649013,1767765052575,-628.0,0.00033104,2]
[400649014,1767765052587,-1365.0,0.00033104,2]
[400649015,1767765052596,-4126.36534877,0.00033147,34]
[400649016,1767765052604,-402.32,0.0003315,34]
[400649017,1767765052613,-1908.17,0.000332,7]
[400649018,1767765052623,-161.86525391,0.000332,117]
[400649019,1767765052632,-316.0,0.00033226,30]
[400649020,1767765052641,-330.0,0.00033226,30]
[400649021,1767765052650,-935.0,0.00033232,30]
[400649022,1767765052660,-2000.0,0.00033391,7]
[400649023,1767765052669,-858.0,0.00033579,30]
[400649024,1767765052679,-652.0,0.00033579,30]
[400649025,1767765052688,-848.5,0.00033579,30]
[400649026,1767765052699,-402.32,0.00033698,35]
[400649027,1767765052709,-210.0,0.00033699,5]
[400649028,1767765052720,-38000.0,0.00033725,10]
[400649029,1767765052730,-38000.0,0.00033734,10]
[400649030,1767765052740,-191.73798973,0.000339,120]
[400649031,1767765052750,-2200.51,0.00034,30]
[400649032,1767765052760,-1041.66666667,0.00034,10]
[400649033,1767765052770,-8045.68317556,0.00034103,2]
[400649034,1767765052779,-2000.0,0.00034125,7]
[400649035,1767765052790,-300.0,0.000342,120]
[400649036,1767765052800,-402.32,0.00034246,36]
[400649037,1767765052809,-1346.23,0.00034246,120]
[400649038,1767765052819,-346.1,0.00034264,6]
[400649039,1767765052829,-1016.281206,0.00034297,31]
[400649040,1767765052839,-1016.281206,0.00034297,31]
[400649041,1767765052848,-1016.281206,0.00034297,31]
[400649042,1767765052858,-1016.281207,0.00034297,31]
[400649043,1767765052868,-340.63,0.000344,2]
[400649044,1767765052877,-270.0,0.00034521,5]
[400649045,1767765052887,-5000.0,0.00034538,3]
[400649046,1767765052896,-316.0,0.00034555,30]
[400649047,1767765052907,-4477.75872881,0.00034567,36]
[400649048,1767765052917,-250.06,0.00034643,60]
[400649049,1767765052927,-250.06,0.00034743,60]
[400649050,1767765052936,-402.32,0.00034794,37]
[400649051,1767765052946,-316.0,0.00034808,30]
[400649052,1767765052955,-648.90890233,0.00034809,120]
[400649053,1767765052965,-250.06,0.00034843,60]
[400649054,1767765052974,-2000.0,0.0003486,7]
[400649055,1767765052984,-459.68311318,0.00034868,15]
[400649056,1767765052993,-250.06,0.00034943,60]
[400649057,1767765053002,-152.0,0.00035,120]
[400649058,1767765053012,-742.05992263,0.00035,7]
[400649059,1767765053022,-1041.66666667,0.00035,10]
[400649060,1767765053032,-250.06,0.00035043,60]
[400649061,1767765053042,-151.0,0.00035112,31]
[400649062,1767765053051,-4059.23672597,0.00035134,2]
[400649063,1767765053061,-250.06,0.00035143,60]
[400649064,1767765053070,-250.06,0.00035243,60]
[400649065,1767765053080,-1000.0,0.00035339,14]
[400649066,1767765053093,-402.32,0.00035342,38]
[400649067,1767765053103,-330.0,0.00035342,5]
[400649068,1767765053112,-250.06,0.00035343,60]
[400649069,1767765053122,-250.06,0.00035443,60]
[400649070,1767765053132,-376.8907927,0.00035452,30]
[400649071,1767765053143,-376.8907927,0.00035452,30]